fUST/lending_fUST_20250221
["ID","MTS","AMOUNT","RATE_DAILY","PERIOD"]
[353873158,1740106249342,-904.34,0.00014767,2]
[353873159,1740106249352,-3045.65,0.00014767,2]
[353873160,1740106249363,-500.0,0.00014767,2]
[353873161,1740106249373,-4206.78,0.00014767,2]
[353873162,1740106249384,-151.0,0.00014767,2]
[353873163,1740106249394,-1118.74,0.00014767,2]
[353873164,1740106249404,-151.0,0.00014767,2]
[353873165,1740106249414,-2061.4,0.00014767,2]
[353873166,1740106249425,-7809.58,0.00014767,2]
[353873167,1740106249436,-312.0,0.0001477,2]
[353873168,1740106249446,-500.0,0.00014773,2]
[353873169,1740106249457,-182.71444893,0.00014773,2]
[353873170,1740106249468,-182.71444893,0.00014773,2]
[353873171,1740106249479,-182.71,0.00014773,2]
[353873172,1740106249489,-511.19794833,0.00014773,2]
[353873173,1740106249499,-511.19794833,0.00014773,2]
[353873174,1740106249512,-511.19794833,0.00014773,2]
[353873175,1740106249522,-511.19794833,0.00014773,2]
[353873176,1740106249532,-511.19794833,0.00014773,2]
[353873177,1740106249542,-511.19794833,0.00014773,2]
[353873178,1740106249552,-511.19794833,0.00014773,2]
[353873179,1740106249562,-511.19794833,0.00014773,2]
[353873180,1740106249572,-511.19794833,0.00014773,2]
[353873181,1740106249582,-511.19794833,0.00014773,2]
[353873182,1740106249592,-511.19794833,0.00014773,2]
[353873183,1740106249602,-511.19794833,0.00014773,2]
[353873184,1740106249611,-511.19794833,0.00014773,2]
[353873185,1740106249621,-511.19794833,0.00014773,2]
[353873186,1740106249631,-511.19794833,0.00014773,2]
[353873187,1740106249642,-511.19794833,0.00014773,2]
[353873188,1740106249654,-511.19794833,0.00014773,2]
[353873189,1740106249665,-511.19794833,0.00014773,2]
[353873190,1740106249675,-511.19794833,0.00014773,2]
[353873191,1740106249685,-511.19,0.00014773,2]
[353873192,1740106249696,-695.12059453,0.00014773,2]
[353873193,1740106249707,-695.12059453,0.00014773,2]
[353873194,1740106249716,-695.12059453,0.00014773,2]
[353873195,1740106249726,-695.12059453,0.00014773,2]
[353873196,1740106249738,-695.12059453,0.00014773,2]
[353873197,1740106249748,-695.12059453,0.00014773,2]
[353873198,1740106249758,-695.12059453,0.00014773,2]
[353873199,1740106249767,-695.12059453,0.00014773,2]
[353873200,1740106249777,-695.12059453,0.00014773,2]
[353873201,1740106249787,-695.12059453,0.00014773,2]
[353873202,1740106249797,-695.12059453,0.00014773,2]
[353873203,1740106249808,-695.12059453,0.00014773,2]
[353873204,1740106249819,-695.12059453,0.00014773,2]
[353873205,1740106249943,-695.12059453,0.00014773,2]
[353873206,1740106249952,-695.12059453,0.00014773,2]
[353873207,1740106249962,-695.12059453,0.00014773,2]
[353873208,1740106249971,-695.12059453,0.00014773,2]
[353873209,1740106249980,-695.12059453,0.00014773,2]
[353873210,1740106249989,-695.12059453,0.00014773,2]
[353873211,1740106249998,-695.12,0.00014773,2]
[353873212,1740106250007,-11886.80580219,0.00014786,2]
[353873213,1740106250018,-2466.25503369,0.00014799,2]
[353873214,1740106250027,-151.0,0.000148,2]
[353873215,1740106250037,-173.52,0.000148,2]
[353873216,1740106250046,-173.52,0.000148,2]
[353873217,1740106250055,-153.030156,0.000148,2]
[353873218,1740106250064,-151.0,0.000148,2]
[353873219,1740106250074,-179.469275,0.000148,2]
[353873220,1740106250083,-179.469275,0.000148,2]
[353873221,1740106250092,-151.0,0.000148,2]
[353873222,1740106250101,-151.0,0.000148,2]
[353873223,1740106250110,-160.0,0.00014841,5]
[353873224,1740106250119,-500.0,0.00014849,2]
[353873225,1740106250129,-500.0,0.00014849,2]
[353873226,1740106250139,-500.0,0.00014849,2]
[353873227,1740106250148,-607.34,0.00014849,2]
[353873228,1740106250159,-193.8047945,0.00014849,2]
[353873229,1740106250168,-550.31,0.00014849,2]
[353873230,1740106250178,-437.90224408,0.00014849,2]
[353873231,1740106250187,-500.0,0.00014849,2]
[353873232,1740106250196,-500.0,0.00014849,2]
[353873233,1740106250206,-500.0,0.00014849,2]
[353873234,1740106250214,-454.46931176,0.00014849,2]
[353873235,1740106250224,-601.68,0.00014849,2]
[353873236,1740106250232,-500.0,0.00014849,2]
[353873237,1740106250242,-500.0,0.00014849,2]
[353873238,1740106250252,-575.24,0.00014849,2]
[353873239,1740106250261,-552.44,0.00014849,2]
[353873240,1740106250271,-500.0,0.00014849,2]
[353873241,1740106250280,-18596.38,0.00014849,2]
[353873242,1740106250290,-500.0,0.00014849,2]
[353873243,1740106250299,-814.72,0.00014849,2]
[353873244,1740106250308,-1004.96,0.00014849,2]
[353873245,1740106250317,-658.35,0.00014849,2]
[353873246,1740106250326,-681.55,0.00014849,2]
[353873247,1740106250336,-500.0,0.00014849,2]
[353873248,1740106250345,-641.17,0.00014849,2]
[353873249,1740106250354,-1280.65,0.00014849,2]
[353873250,1740106250363,-733.16,0.00014849,2]
[353873251,1740106250372,-1612.95,0.00014849,2]
[353873252,1740106250382,-3381.52,0.00014849,2]
[353873253,1740106250392,-1943.47,0.00014849,2]
[353873254,1740106250401,-1045.97,0.00014849,2]
[353873255,1740106250411,-1212.41,0.00014849,2]
[353873256,1740106250420,-1020.03,0.00014849,2]
[353873257,1740106250429,-660.73,0.00014849,2]
[353873258,1740106250439,-500.0,0.00014849,2]
[353873259,1740106250449,-1893.39,0.00014849,2]
[353873260,1740106250460,-235.47127923,0.00014849,2]
[353873261,1740106250471,-541.62,0.00014849,2]
[353873262,1740106250480,-500.0,0.00014849,2]
[353873263,1740106250490,-1285.94,0.00014849,2]
[353873264,1740106250499,-1080.46,0.00014849,2]
[353873265,1740106250508,-328.16446878,0.00014849,2]
[353873266,1740106250518,-151.0,0.00014849,2]
[353873267,1740106250527,-9208.68,0.00014849,2]
[353873268,1740106250536,-500.0,0.00014849,2]
[353873269,1740106250546,-1313.31,0.00014849,2]
[353873270,1740106250555,-151.0,0.00014849,2]
[353873271,1740106250564,-996.7,0.00014849,2]
[353873272,1740106250574,-199.196782,0.00014849,2]
[353873273,1740106250583,-904.34,0.00014849,2]
[353873274,1740106250593,-3045.65,0.00014849,2]
[353873275,1740106250603,-500.0,0.00014849,2]
[353873276,1740106250612,-4206.78,0.00014849,2]
[353873277,1740106250622,-1118.74,0.00014849,2]
[353873278,1740106250632,-2061.4,0.00014849,2]
[353873279,1740106250641,-7809.58,0.00014849,2]
[353873280,1740106250654,-500.0,0.00014873,2]
[353873281,1740106250665,-500.0,0.00014873,2]
[353873282,1740106250675,-500.0,0.00014873,2]
[353873283,1740106250684,-500.0,0.00014873,2]
[353873284,1740106250693,-28020.09638514,0.00014899,2]
[353873285,1740106250825,-42736.12222467,0.00014899,2]
[353873286,1740106250838,-38326.73172544,0.00014899,2]
[353873287,1740106250848,-156.4701,0.00014899,2]
[353873288,1740106250858,-2281.26,0.000149,3]
[353873289,1740106250867,-169.26,0.000149,2]
[353873290,1740106250876,-151.592091,0.000149,2]
[353873291,1740106250886,-173.52,0.000149,2]
[353873292,1740106250895,-173.52,0.000149,2]
[353873293,1740106250905,-151.0,0.000149,2]
[353873294,1740106250915,-179.469275,0.000149,2]
[353873295,1740106250924,-179.469275,0.000149,2]
[353873296,1740106250933,-151.0,0.000149,2]
[353873297,1740106250943,-203.04715,0.000149,2]
[353873298,1740106250953,-188714.71414783,0.000149,2]
[353873299,1740106250965,-1256.34000017,0.000149,2]
[353873300,1740106251073,-1425.02,0.00014109,2]
[353873301,1740106251083,-1425.02,0.00014191,2]
[353873302,1740106251094,-1425.02,0.00014273,2]
[353873303,1740106251104,-1425.02,0.00014356,2]
[353873304,1740106251114,-1425.02,0.00014438,2]
[353873305,1740106251123,-1425.02,0.0001452,2]
[353873306,1740106251135,-1425.02,0.00014602,2]
[353873307,1740106251144,-1425.02,0.00014684,2]
[353873308,1740106251155,-1425.02,0.00014767,2]
[353873309,1740106251164,-335321.15813682,0.000149,2]
[353873310,1740106251327,-330.85826451,0.00013698,2]
[353873311,1740106251339,-214.92173549,0.00013698,2]
[353873312,1740106251348,-500.0,0.0001378,2]
[353873313,1740106251357,-500.0,0.00014054,2]
[353873314,1740106251367,-500.0,0.00014328,2]
[353873315,1740106251375,-1425.02,0.00014849,2]
[353873316,1740106251384,-968.46176711,0.000149,2]
[353873319,1740106849571,400.0,9.041e-05,2]
[353873334,1740107091714,654.06,0.00012,30]
[353873440,1740107436081,-670.25375876,0.00011833,2]
[353873446,1740107436134,-5552.57114591,0.00011833,2]
[353873448,1740107436147,-524.4500925,0.0001309,2]
[353873450,1740107436157,-171.67306007,0.00013598,2]
[353873452,1740107436167,-500.0,0.00013698,2]
[353873454,1740107436177,-506.19120451,0.00013698,2]
[353873456,1740107436187,-500.0,0.00013698,2]
[353873458,1740107436197,-500.0,0.00013698,2]
[353873460,1740107436207,-1000.0,0.00013698,2]
[353873462,1740107436217,-500.0,0.00013698,2]
[353873464,1740107436227,-500.0,0.00013698,2]
[353873466,1740107436238,-500.0,0.00013698,2]
[353873468,1740107436247,-500.0,0.00013698,2]
[353873470,1740107436257,-500.0,0.00013698,2]
[353873472,1740107436267,-500.0,0.00013698,2]
[353873475,1740107436276,-500.0,0.00013698,2]
[353873477,1740107436287,-500.0,0.00013698,2]
[353873479,1740107436296,-500.0,0.00013698,2]
[353873481,1740107436305,-500.0,0.00013698,2]
[353873483,1740107436315,-212.93320502,0.00013698,2]
[353873485,1740107436325,-500.0,0.00013698,2]
[353873487,1740107436335,-500.0,0.00013698,2]
[353873489,1740107436344,-594.01,0.00013698,2]
[353873491,1740107436354,-500.0,0.00013698,2]
[353873493,1740107436364,-500.0,0.00013698,2]
[353873495,1740107436376,-500.0,0.00013698,2]
[353873497,1740107436385,-582.95,0.00013698,2]
[353873499,1740107436395,-500.0,0.00013698,2]
[353873501,1740107436405,-500.0,0.00013698,2]
[353873503,1740107436416,-500.0,0.00013698,2]
[353873504,1740107436425,-500.0,0.00013698,2]
[353873506,1740107436435,-505.15527731,0.00013698,2]
[353873507,1740107436445,-717.52,0.00013698,2]
[353873508,1740107436454,-500.0,0.00013698,2]
[353873509,1740107436464,-500.0,0.00013698,2]
[353873510,1740107436474,-536.81,0.00013698,2]
[353873511,1740107436483,-500.0,0.00013698,2]
[353873512,1740107436492,-500.0,0.00013698,2]
[353873513,1740107436502,-224.8062211,0.00013698,2]
[353873514,1740107436511,-500.0,0.00013698,2]
[353873515,1740107436521,-500.0,0.00013698,2]
[353873516,1740107436530,-500.0,0.00013698,2]
[353873517,1740107436539,-500.0,0.00013698,2]
[353873518,1740107436549,-500.0,0.00013698,2]
[353873519,1740107436559,-500.0,0.00013698,2]
[353873520,1740107436569,-500.0,0.00013698,2]
[353873521,1740107436579,-500.0,0.00013698,2]
[353873522,1740107436588,-2466.59,0.00013698,2]
[353873523,1740107436597,-792.77,0.00013698,2]
[353873524,1740107436607,-1718.54,0.00013698,2]
[353873525,1740107436617,-500.0,0.00013698,2]
[353873527,1740107436627,-975.81,0.00013698,2]
[353873528,1740107436637,-902.95,0.00013698,2]
[353873530,1740107436646,-500.0,0.00013698,2]
[353873531,1740107436655,-500.0,0.00013698,2]
[353873532,1740107436666,-22559.60258511,0.00013698,2]
[353873533,1740107436945,-3509.23741489,0.00013698,2]
[353873534,1740107436955,-818.05,0.00013698,2]
[353873535,1740107436965,-500.0,0.00013698,2]
[353873536,1740107436975,-1628.9,0.00013698,2]
[353873537,1740107436984,-1072.15798365,0.00013698,2]
[353873547,1740107438303,-218.75201635,0.00013698,2]
[353873548,1740107438313,-999.03,0.00013698,2]
[353873549,1740107438322,-138.53005165,0.00013698,2]
[353873550,1740107438339,-361.46994835,0.00013698,2]
[353873551,1740107438348,-965.51,0.00013698,2]
[353873552,1740107438358,-589.06,0.00013698,2]
[353873553,1740107438367,-2190.03,0.00013698,2]
[353873554,1740107438376,-508.4735218,0.00013698,2]
[353873555,1740107438386,-500.0,0.00013698,2]
[353873556,1740107438395,-4503.57,0.00013698,2]
[353873557,1740107438405,-500.0,0.00013698,2]
[353873558,1740107438414,-500.0,0.00013698,2]
[353873559,1740107438423,-500.0,0.00013698,2]
[353873560,1740107438432,-500.0,0.00013698,2]
[353873561,1740107438443,-2343.12,0.00013698,2]
[353873562,1740107438452,-500.0,0.00013698,2]
[353873563,1740107438462,-500.0,0.00013698,2]
[353873564,1740107438472,-500.0,0.00013698,2]
[353873565,1740107438481,-1304.69,0.00013698,2]
[353873566,1740107438492,-500.0,0.00013698,2]
[353873567,1740107438502,-881.12,0.00013698,2]
[353873568,1740107438512,-500.0,0.00013698,2]
[353873569,1740107438521,-1406.72,0.00013698,2]
[353873570,1740107438531,-729.83,0.00013698,2]
[353873571,1740107438541,-500.0,0.00013698,2]
[353873572,1740107438551,-2606.66,0.00013698,2]
[353873573,1740107438563,-1620.99,0.00013698,2]
[353873574,1740107438572,-583.01,0.00013698,2]
[353873575,1740107438582,-907.24,0.00013698,2]
[353873576,1740107438592,-623.91102744,0.00013698,2]
[353873577,1740107438602,-500.0,0.00013698,2]
[353873578,1740107438612,-500.0,0.00013698,2]
[353873579,1740107438621,-13171.03,0.00013698,2]
[353873580,1740107438631,-505.02935806,0.00013698,2]
[353873581,1740107438641,-1823.61,0.00013698,2]
[353873582,1740107438651,-520.65,0.00013698,2]
[353873583,1740107438661,-500.0,0.00013698,2]
[353873584,1740107438670,-1856.58,0.00013698,2]
[353873585,1740107438680,-1298.88,0.00013698,2]
[353873586,1740107438690,-500.0,0.00013698,2]
[353873587,1740107438699,-500.0,0.00013698,2]
[353873588,1740107438710,-500.0,0.00013698,2]
[353873589,1740107438719,-500.0,0.00013698,2]
[353873590,1740107438730,-500.0,0.00013698,2]
[353873591,1740107438740,-635.83,0.00013698,2]
[353873592,1740107438750,-500.0,0.00013698,2]
[353873593,1740107438759,-500.0,0.00013698,2]
[353873594,1740107438768,-4102.87,0.00013698,2]
[353873595,1740107438779,-1328.63,0.00013698,2]
[353873596,1740107438788,-1617.24,0.00013698,2]
[353873597,1740107438798,-500.0,0.00013698,2]
[353873598,1740107438808,-500.0,0.00013698,2]
[353873599,1740107438818,-500.0,0.00013698,2]
[353873600,1740107438827,-6014.3,0.00013698,2]
[353873601,1740107438837,-11177.63,0.00013698,2]
[353873602,1740107438847,-500.0,0.00013698,2]
[353873603,1740107438857,-500.0,0.00013698,2]
[353873604,1740107438866,-816.91,0.00013698,2]
[353873605,1740107438876,-500.0,0.00013698,2]
[353873606,1740107438886,-500.0,0.00013698,2]
[353873607,1740107438895,-500.0,0.00013698,2]
[353873608,1740107438905,-173.529477,0.00013699,2]
[353873609,1740107438915,-440.038256,0.00013699,2]
[353873610,1740107438925,-592.23062239,0.0001371,2]
[353873611,1740107438934,-190.36056066,0.00013779,2]
[353873612,1740107438944,-500.0,0.00013779,2]
[353873613,1740107438954,-411.88411068,0.00013779,2]
[353873614,1740107438963,-500.0,0.0001378,2]
[353873615,1740107438973,-500.0,0.0001378,2]
[353873616,1740107438983,-500.0,0.0001378,2]
[353873617,1740107438993,-361.98425505,0.0001378,2]
[353873618,1740107439002,-500.0,0.0001378,2]
[353873619,1740107439011,-500.0,0.0001378,2]
[353873620,1740107439021,-500.0,0.0001378,2]
[353873621,1740107439031,-500.0,0.0001378,2]
[353873622,1740107439040,-500.0,0.0001378,2]
[353873623,1740107439050,-500.0,0.0001378,2]
[353873624,1740107439059,-500.0,0.0001378,2]
[353873625,1740107439070,-500.0,0.0001378,2]
[353873626,1740107439079,-500.0,0.0001378,2]
[353873627,1740107439089,-500.0,0.0001378,2]
[353873628,1740107439103,-500.0,0.0001378,2]
[353873629,1740107439112,-594.01,0.0001378,2]
[353873630,1740107439122,-500.0,0.0001378,2]
[353873631,1740107439131,-500.0,0.0001378,2]
[353873632,1740107439142,-500.0,0.0001378,2]
[353873633,1740107439151,-582.95,0.0001378,2]
[353873634,1740107439161,-500.0,0.0001378,2]
[353873635,1740107439171,-500.0,0.0001378,2]
[353873636,1740107439181,-500.0,0.0001378,2]
[353873637,1740107439190,-500.0,0.0001378,2]
[353873638,1740107439200,-717.52,0.0001378,2]
[353873639,1740107439209,-500.0,0.0001378,2]
[353873640,1740107439219,-500.0,0.0001378,2]
[353873641,1740107439229,-536.81,0.0001378,2]
[353873642,1740107439238,-261.77239442,0.0001378,2]
[353873643,1740107439248,-500.0,0.0001378,2]
[353873644,1740107439257,-500.0,0.0001378,2]
[353873645,1740107439267,-500.0,0.0001378,2]
[353873646,1740107439276,-500.0,0.0001378,2]
[353873647,1740107439285,-500.0,0.0001378,2]
[353873648,1740107439295,-500.0,0.0001378,2]
[353873649,1740107439304,-436.49850278,0.0001378,2]
[353873650,1740107439313,-500.0,0.0001378,2]
[353873651,1740107439323,-500.0,0.0001378,2]
[353873652,1740107439332,-2466.59,0.0001378,2]
[353873653,1740107439342,-792.77,0.0001378,2]
[353873654,1740107439351,-1718.54,0.0001378,2]
[353873655,1740107439361,-500.0,0.0001378,2]
[353873656,1740107439370,-975.81,0.0001378,2]
[353873657,1740107439380,-902.95,0.0001378,2]
[353873658,1740107439389,-500.0,0.0001378,2]
[353873659,1740107439399,-500.0,0.0001378,2]
[353873660,1740107439408,-26068.84,0.0001378,2]
[353873661,1740107439417,-818.05,0.0001378,2]
[353873662,1740107439426,-500.0,0.0001378,2]
[353873663,1740107439436,-1628.9,0.0001378,2]
[353873664,1740107439445,-1290.91,0.0001378,2]
[353873665,1740107439454,-999.03,0.0001378,2]
[353873666,1740107439463,-466.38782598,0.0001378,2]
[353873667,1740107439473,-965.51,0.0001378,2]
[353873668,1740107439482,-589.06,0.0001378,2]
[353873669,1740107439491,-2190.03,0.0001378,2]
[353873670,1740107439500,-500.0,0.0001378,2]
[353873671,1740107439510,-4503.57,0.0001378,2]
[353873672,1740107439520,-500.0,0.0001378,2]
[353873673,1740107439529,-500.0,0.0001378,2]
[353873674,1740107439539,-500.0,0.0001378,2]
[353873675,1740107439548,-500.0,0.0001378,2]
[353873676,1740107439558,-2343.12,0.0001378,2]
[353873677,1740107439568,-500.0,0.0001378,2]
[353873678,1740107439578,-500.0,0.0001378,2]
[353873679,1740107439587,-500.0,0.0001378,2]
[353873680,1740107439596,-1304.69,0.0001378,2]
[353873681,1740107439604,-500.0,0.0001378,2]
[353873682,1740107439613,-881.12,0.0001378,2]
[353873683,1740107439622,-500.0,0.0001378,2]
[353873684,1740107439631,-1406.72,0.0001378,2]
[353873685,1740107439641,-729.83,0.0001378,2]
[353873686,1740107439650,-500.0,0.0001378,2]
[353873687,1740107439660,-2606.66,0.0001378,2]
[353873688,1740107439669,-1620.99,0.0001378,2]
[353873689,1740107439679,-583.01,0.0001378,2]
[353873690,1740107439689,-907.24,0.0001378,2]
[353873691,1740107439698,-500.0,0.0001378,2]
[353873693,1740107439707,-500.0,0.0001378,2]
[353873694,1740107439716,-13171.03,0.0001378,2]
[353873695,1740107439725,-1823.61,0.0001378,2]
[353873696,1740107439735,-520.65,0.0001378,2]
[353873697,1740107439744,-500.0,0.0001378,2]
[353873699,1740107439753,-1856.58,0.0001378,2]
[353873700,1740107439762,-1298.88,0.0001378,2]
[353873701,1740107439771,-500.0,0.0001378,2]
[353873702,1740107439780,-500.0,0.0001378,2]
[353873703,1740107439789,-500.0,0.0001378,2]
[353873704,1740107439798,-500.0,0.0001378,2]
[353873705,1740107439807,-635.83,0.0001378,2]
[353873707,1740107439816,-500.0,0.0001378,2]
[353873709,1740107439825,-500.0,0.0001378,2]
[353873711,1740107439835,-4102.87,0.0001378,2]
[353873713,1740107439844,-1328.63,0.0001378,2]
[353873715,1740107439853,-1617.24,0.0001378,2]
[353873717,1740107439863,-500.0,0.0001378,2]
[353873719,1740107439873,-500.0,0.0001378,2]
[353873721,1740107439882,-500.0,0.0001378,2]
[353873723,1740107439891,-6014.3,0.0001378,2]
[353873726,1740107439901,-500.0,0.0001378,2]
[353873728,1740107439911,-11177.63,0.0001378,2]
[353873730,1740107439920,-500.0,0.0001378,2]
[353873732,1740107439929,-816.91,0.0001378,2]
[353873734,1740107439939,-500.0,0.0001378,2]
[353873736,1740107439948,-500.0,0.0001378,2]
[353873738,1740107439958,-38980.20807772,0.00013845,2]
[353873740,1740107439967,-500.0,0.00013863,2]
[353873742,1740107439976,-500.0,0.00013863,2]
[353873744,1740107439985,-500.0,0.00013863,2]
[353873746,1740107439995,-500.0,0.00013863,2]
[353873747,1740107440004,-500.0,0.00013863,2]
[353873750,1740107440014,-500.0,0.00013863,2]
[353873752,1740107440023,-500.0,0.00013863,2]
[353873754,1740107440033,-500.0,0.00013863,2]
[353873756,1740107440042,-594.01,0.00013863,2]
[353873758,1740107440051,-500.0,0.00013863,2]
[353873760,1740107440060,-500.0,0.00013863,2]
[353873762,1740107440070,-500.0,0.00013863,2]
[353873764,1740107440079,-582.95,0.00013863,2]
[353873766,1740107440088,-500.0,0.00013863,2]
[353873768,1740107440102,-500.0,0.00013863,2]
[353873770,1740107440111,-500.0,0.00013863,2]
[353873772,1740107440120,-500.0,0.00013863,2]
[353873774,1740107440130,-717.52,0.00013863,2]
[353873776,1740107440141,-500.0,0.00013863,2]
[353873778,1740107440151,-500.0,0.00013863,2]
[353873780,1740107440161,-536.81,0.00013863,2]
[353873782,1740107440171,-500.0,0.00013863,2]
[353873784,1740107440181,-500.0,0.00013863,2]
[353873786,1740107440190,-500.0,0.00013863,2]
[353873788,1740107440200,-500.0,0.00013863,2]
[353873790,1740107440209,-500.0,0.00013863,2]
[353873792,1740107440218,-500.0,0.00013863,2]
[353873794,1740107440228,-500.0,0.00013863,2]
[353873796,1740107440237,-500.0,0.00013863,2]
[353873798,1740107440247,-2466.59,0.00013863,2]
[353873800,1740107440256,-792.77,0.00013863,2]
[353873802,1740107440265,-1718.54,0.00013863,2]
[353873804,1740107440275,-500.0,0.00013863,2]
[353873806,1740107440284,-975.81,0.00013863,2]
[353873808,1740107440293,-902.95,0.00013863,2]
[353873810,1740107440302,-500.0,0.00013863,2]
[353873812,1740107440311,-500.0,0.00013863,2]
[353873814,1740107440320,-26068.84,0.00013863,2]
[353873816,1740107440329,-818.05,0.00013863,2]
[353873818,1740107440339,-500.0,0.00013863,2]
[353873820,1740107440348,-1628.9,0.00013863,2]
[353873822,1740107440358,-1290.91,0.00013863,2]
[353873824,1740107440367,-999.03,0.00013863,2]
[353873826,1740107440376,-965.51,0.00013863,2]
[353873828,1740107440386,-589.06,0.00013863,2]
[353873830,1740107440395,-2190.03,0.00013863,2]
[353873832,1740107440405,-330.96217767,0.00013863,2]
[353873834,1740107440414,-4503.57,0.00013863,2]
[353873836,1740107440423,-500.0,0.00013863,2]
[353873838,1740107440433,-500.0,0.00013863,2]
[353873840,1740107440443,-500.0,0.00013863,2]
[353873842,1740107440452,-500.0,0.00013863,2]
[353873845,1740107440462,-2343.12,0.00013863,2]
[353873846,1740107440471,-500.0,0.00013863,2]
[353873849,1740107440480,-500.0,0.00013863,2]
[353873851,1740107440490,-500.0,0.00013863,2]
[353873853,1740107440500,-1304.69,0.00013863,2]
[353873855,1740107440509,-500.0,0.00013863,2]
[353873857,1740107440518,-881.12,0.00013863,2]
[353873859,1740107440528,-1406.72,0.00013863,2]
[353873861,1740107440537,-729.83,0.00013863,2]
[353873863,1740107440546,-500.0,0.00013863,2]
[353873864,1740107440556,-2606.66,0.00013863,2]
[353873866,1740107440565,-1620.99,0.00013863,2]
[353873868,1740107440575,-583.01,0.00013863,2]
[353873870,1740107440584,-907.24,0.00013863,2]
[353873872,1740107440593,-500.0,0.00013863,2]
[353873874,1740107440603,-500.0,0.00013863,2]
[353873876,1740107440611,-13171.03,0.00013863,2]
[353873878,1740107440620,-1823.61,0.00013863,2]
[353873891,1740107440732,-520.65,0.00013863,2]
[353873894,1740107440743,-500.0,0.00013863,2]
[353873896,1740107440752,-1856.58,0.00013863,2]
[353873898,1740107440761,-1298.88,0.00013863,2]
[353873900,1740107440771,-500.0,0.00013863,2]
[353873902,1740107440780,-500.0,0.00013863,2]
[353873904,1740107440790,-500.0,0.00013863,2]
[353873906,1740107440799,-500.0,0.00013863,2]
[353873908,1740107440808,-635.83,0.00013863,2]
[353873910,1740107440818,-500.0,0.00013863,2]
[353873912,1740107440827,-500.0,0.00013863,2]
[353873914,1740107440836,-4102.87,0.00013863,2]
[353873916,1740107440845,-1328.63,0.00013863,2]
[353873918,1740107440854,-1617.24,0.00013863,2]
[353873920,1740107440864,-500.0,0.00013863,2]
[353873922,1740107440873,-500.0,0.00013863,2]
[353873924,1740107440882,-500.0,0.00013863,2]
[353873926,1740107440892,-6014.3,0.00013863,2]
[353873928,1740107440902,-500.0,0.00013863,2]
[353873930,1740107440911,-11177.63,0.00013863,2]
[353873932,1740107440920,-500.0,0.00013863,2]
[353873934,1740107440929,-816.91,0.00013863,2]
[353873936,1740107440938,-500.0,0.00013863,2]
[353873938,1740107440947,-500.0,0.00013863,2]
[353873940,1740107440956,-151.0,0.000139,2]
[353873942,1740107440965,-151.0,0.000139,2]
[353873944,1740107440974,-500.0,0.00013945,2]
[353873946,1740107440983,-366.07919931,0.00013945,2]
[353873948,1740107440993,-500.0,0.00013945,2]
[353873950,1740107441002,-500.0,0.00013945,2]
[353873952,1740107441011,-500.0,0.00013945,2]
[353873954,1740107441021,-594.01,0.00013945,2]
[353873956,1740107441030,-500.0,0.00013945,2]
[353873958,1740107441039,-500.0,0.00013945,2]
[353873960,1740107441049,-582.95,0.00013945,2]